[Event "*** Titled Tuesday 3|2 Blitz"]
[Site "Chess.com"]
[Date "2015.07.07"]
[Round "6"]
[White "Keranke"]
[Black "Canonkasparov"]
[Result "1/2-1/2"]
[WhiteElo "2526"]
[BlackElo "2241"]
[TimeControl "180+2"]
[EndTime "12:19:39 PDT"]
[Termination "Game drawn - insufficient material"]

1. d4 {[%clk 0:03:01.9]} 1... d5 {[%clk 0:02:57.9]} 2. c4 {[%clk 0:03:02.7]}
2... c6 {[%clk 0:02:54.7]} 3. Nf3 {[%clk 0:03:02.1]} 3... Nf6 {[%clk 0:02:52.6]}
4. g3 {[%clk 0:02:56.6]} 4... Bf5 {[%clk 0:02:50.8]} 5. Bg2 {[%clk 0:02:55.9]}
5... e6 {[%clk 0:02:52.1]} 6. O-O {[%clk 0:02:56.1]} 6... Nbd7 {[%clk
0:02:51.3]} 7. Nc3 {[%clk 0:02:56.2]} 7... Be7 {[%clk 0:02:51.5]} 8. Qb3 {[%clk
0:02:54.3]} 8... Qb6 {[%clk 0:02:51.3]} 9. Nd2 {[%clk 0:02:53.1]} 9... O-O
{[%clk 0:02:48.5]} 10. e4 {[%clk 0:02:52.3]} 10... dxe4 {[%clk 0:02:49.2]} 11.
Ndxe4 {[%clk 0:02:54.2]} 11... Nxe4 {[%clk 0:02:49.6]} 12. Nxe4 {[%clk
0:02:56.1]} 12... Nf6 {[%clk 0:02:49]} 13. Nc5 {[%clk 0:02:47.4]} 13... Bxc5
{[%clk 0:02:42.6]} 14. dxc5 {[%clk 0:02:48.3]} 14... Qxb3 {[%clk 0:02:42.6]} 15.
axb3 {[%clk 0:02:50.2]} 15... a6 {[%clk 0:02:42.5]} 16. Bf4 {[%clk 0:02:47]}
16... Rfd8 {[%clk 0:02:33.5]} 17. b4 {[%clk 0:02:38.6]} 17... Be4 {[%clk
0:02:29.4]} 18. Bd6 {[%clk 0:02:09.3]} 18... Bxg2 {[%clk 0:02:27.3]} 19. Kxg2
{[%clk 0:02:11.2]} 19... Rd7 {[%clk 0:02:21.1]} 20. b5 {[%clk 0:02:09.5]} 20...
Ne4 {[%clk 0:02:17.2]} 21. Rfd1 {[%clk 0:01:56.8]} 21... f5 {[%clk 0:02:06.1]}
22. bxc6 {[%clk 0:01:45.6]} 22... bxc6 {[%clk 0:02:05.8]} 23. b4 {[%clk
0:01:36]} 23... Rb7 {[%clk 0:02:04.3]} 24. Rdb1 {[%clk 0:01:00]} 24... Raa7
{[%clk 0:01:56.5]} 25. f3 {[%clk 0:00:54.4]} 25... Nd2 {[%clk 0:01:51.1]} 26.
Re1 {[%clk 0:00:47.9]} 26... Kf7 {[%clk 0:01:38.5]} 27. b5 {[%clk 0:00:20.9]}
27... axb5 {[%clk 0:01:37.7]} 28. Rxa7 {[%clk 0:00:22.2]} 28... Rxa7 {[%clk
0:01:38.2]} 29. cxb5 {[%clk 0:00:24.1]} 29... cxb5 {[%clk 0:01:37.5]} 30. c6
{[%clk 0:00:25.6]} 30... Nc4 {[%clk 0:01:35.1]} 31. Bb8 {[%clk 0:00:25.9]} 31...
Ra6 {[%clk 0:01:34]} 32. c7 {[%clk 0:00:25.8]} 32... Rc6 {[%clk 0:01:34.4]} 33.
Rb1 {[%clk 0:00:24.7]} 33... Nd6 {[%clk 0:01:32.9]} 34. c8=Q {[%clk 0:00:17.9]}
34... Nxc8 {[%clk 0:01:33.1]} 35. Rxb5 {[%clk 0:00:19.2]} 35... Nd6 {[%clk
0:01:32.7]} 36. Rb3 {[%clk 0:00:17.9]} 36... g5 {[%clk 0:01:31.9]} 37. h4 {[%clk
0:00:15.4]} 37... h6 {[%clk 0:01:31.8]} 38. Ba7 {[%clk 0:00:15.5]} 38... gxh4
{[%clk 0:01:29.1]} 39. gxh4 {[%clk 0:00:16.8]} 39... e5 {[%clk 0:01:30]} 40. h5
{[%clk 0:00:17]} 40... Ke6 {[%clk 0:01:27.9]} 41. Rb8 {[%clk 0:00:16.2]} 41...
Nf7 {[%clk 0:01:27.6]} 42. Rg8 {[%clk 0:00:16.9]} 42... Rc2+ {[%clk 0:01:24.7]}
43. Bf2 {[%clk 0:00:16.4]} 43... e4 {[%clk 0:01:23.7]} 44. fxe4 {[%clk
0:00:18.3]} 44... fxe4 {[%clk 0:01:24.3]} 45. Kg3 {[%clk 0:00:19.9]} 45... Kf5
{[%clk 0:01:23.2]} 46. Rg7 {[%clk 0:00:17.8]} 46... Ne5 {[%clk 0:01:18.3]} 47.
Rg8 {[%clk 0:00:09.8]} 47... Rc3+ {[%clk 0:01:18.5]} 48. Kg2 {[%clk 0:00:10.9]}
48... Rf3 {[%clk 0:01:14.4]} 49. Rf8+ {[%clk 0:00:08.9]} 49... Kg4 {[%clk
0:01:14.2]} 50. Re8 {[%clk 0:00:10.2]} 50... Rf5 {[%clk 0:01:13.6]} 51. Bg3
{[%clk 0:00:10.5]} 51... Nf7 {[%clk 0:01:07.7]} 52. Rxe4+ {[%clk 0:00:11.5]}
52... Kxh5 {[%clk 0:01:08.5]} 53. Ra4 {[%clk 0:00:12.8]} 53... Ng5 {[%clk
0:01:06.5]} 54. Rh4+ {[%clk 0:00:13.3]} 54... Kg6 {[%clk 0:01:07.1]} 55. Ra4
{[%clk 0:00:15.2]} 55... Rf6 {[%clk 0:01:05.5]} 56. Ra8 {[%clk 0:00:15.6]} 56...
Ne6 {[%clk 0:01:04.8]} 57. Rg8+ {[%clk 0:00:16.5]} 57... Kf7 {[%clk 0:01:05.1]}
58. Ra8 {[%clk 0:00:18.4]} 58... Rg6 {[%clk 0:01:05.6]} 59. Kh3 {[%clk 0:00:19]}
59... Ng7 {[%clk 0:01:04.6]} 60. Ra7+ {[%clk 0:00:19.7]} 60... Kg8 {[%clk
0:01:05]} 61. Be5 {[%clk 0:00:20.2]} 61... Nf5 {[%clk 0:01:03.8]} 62. Ra8+
{[%clk 0:00:19.1]} 62... Kf7 {[%clk 0:01:04.3]} 63. Ra7+ {[%clk 0:00:20.7]}
63... Ke6 {[%clk 0:01:05.1]} 64. Ra6+ {[%clk 0:00:22.2]} 64... Kf7 {[%clk
0:01:05.9]} 65. Ra7+ {[%clk 0:00:23.8]} 65... Ne7 {[%clk 0:01:06.7]} 66. Bd4
{[%clk 0:00:24]} 66... Rc6 {[%clk 0:01:06.6]} 67. Bf2 {[%clk 0:00:22.9]} 67...
Ke6 {[%clk 0:01:05.9]} 68. Bh4 {[%clk 0:00:22.9]} 68... Nf5 {[%clk 0:01:05.6]}
69. Bf2 {[%clk 0:00:24.3]} 69... Kd5 {[%clk 0:01:03.9]} 70. Rf7 {[%clk
0:00:24.8]} 70... Ke4 {[%clk 0:01:03.7]} 71. Rf8 {[%clk 0:00:25.5]} 71... Re6
{[%clk 0:01:02.9]} 72. Kg2 {[%clk 0:00:24.5]} 72... Rg6+ {[%clk 0:00:59.5]} 73.
Kh3 {[%clk 0:00:25.6]} 73... Kf4 {[%clk 0:00:59.6]} 74. Be1 {[%clk 0:00:22.6]}
74... h5 {[%clk 0:00:57.1]} 75. Bd2+ {[%clk 0:00:23.7]} 75... Ke4 {[%clk
0:00:56.9]} 76. Be1 {[%clk 0:00:17.6]} 76... Rg1 {[%clk 0:00:55.7]} 77. Bf2
{[%clk 0:00:17.1]} 77... Rf1 {[%clk 0:00:53.8]} 78. Kg2 {[%clk 0:00:14.4]} 78...
Ne3+ {[%clk 0:00:54]} 79. Kg3 {[%clk 0:00:16]} 79... Nf5+ {[%clk 0:00:51.6]} 80.
Kg2 {[%clk 0:00:17.2]} 80... Rd1 {[%clk 0:00:51.8]} 81. Rh8 {[%clk 0:00:17.4]}
81... Ng7 {[%clk 0:00:46.3]} 82. Rh7 {[%clk 0:00:16.4]} 82... Rd7 {[%clk
0:00:45.5]} 83. Rh6 {[%clk 0:00:15.7]} 83... Kf5 {[%clk 0:00:45.5]} 84. Ra6
{[%clk 0:00:16.9]} 84... Kg4 {[%clk 0:00:45.5]} 85. Ra4+ {[%clk 0:00:17.9]}
85... Kf5 {[%clk 0:00:46]} 86. Ra5+ {[%clk 0:00:19.5]} 86... Kg6 {[%clk
0:00:46.2]} 87. Ra6+ {[%clk 0:00:21.1]} 87... Kf7 {[%clk 0:00:46]} 88. Be3
{[%clk 0:00:22.1]} 88... Ne6 {[%clk 0:00:46.3]} 89. Kf3 {[%clk 0:00:21.9]} 89...
Rd8 {[%clk 0:00:43.2]} 90. Ra7+ {[%clk 0:00:20.5]} 90... Kg6 {[%clk 0:00:43.4]}
91. Ra6 {[%clk 0:00:22.2]} 91... Kf6 {[%clk 0:00:43.1]} 92. Bf2 {[%clk
0:00:22.1]} 92... Rg8 {[%clk 0:00:42.3]} 93. Bh4+ {[%clk 0:00:22.2]} 93... Ke5
{[%clk 0:00:41.7]} 94. Ra5+ {[%clk 0:00:23]} 94... Kd6 {[%clk 0:00:41.4]} 95.
Rxh5 {[%clk 0:00:23.9]} 95... Nd4+ {[%clk 0:00:39.8]} 96. Ke4 {[%clk 0:00:24.6]}
96... Ne6 {[%clk 0:00:39.2]} 97. Rd5+ {[%clk 0:00:25.1]} 97... Kc6 {[%clk
0:00:39.7]} 98. Ke5 {[%clk 0:00:20.6]} 98... Rg4 {[%clk 0:00:30.5]} 99. Rd6+
{[%clk 0:00:19.8]} 99... Kc7 {[%clk 0:00:29.1]} 100. Be7 {[%clk 0:00:20.5]}
100... Rg6 {[%clk 0:00:24.5]} 101. Bf6 {[%clk 0:00:20.5]} 101... Rxf6 {[%clk
0:00:19.3]} 102. Kxf6 {[%clk 0:00:22.4]} 102... Kxd6 {[%clk 0:00:19.6]} 1/2-1/2

[Event "*** Titled Tuesday 3|2 Blitz"]
[Site "Chess.com"]
[Date "2015.07.07"]
[Round "6"]
[White "lukas_111111"]
[Black "Cryptochess"]
[Result "0-1"]
[WhiteElo "2174"]
[BlackElo "2361"]
[TimeControl "180+2"]
[EndTime "12:20:01 PDT"]
[Termination "Cryptochess won by checkmate"]

1. e4 {[%clk 0:03:01.9]} 1... d6 {[%clk 0:03:00.7]} 2. d4 {[%clk 0:03:01.2]}
2... Nf6 {[%clk 0:03:02.3]} 3. Nc3 {[%clk 0:03:01.3]} 3... g6 {[%clk 0:03:03.7]}
4. Be3 {[%clk 0:02:57.9]} 4... c6 {[%clk 0:03:03.9]} 5. a4 {[%clk 0:02:57.3]}
5... Bg7 {[%clk 0:03:04.2]} 6. h3 {[%clk 0:02:58.5]} 6... O-O {[%clk 0:03:05.6]}
7. Nf3 {[%clk 0:02:59]} 7... Nbd7 {[%clk 0:03:04.7]} 8. a5 {[%clk 0:02:59.3]}
8... e5 {[%clk 0:03:04.8]} 9. dxe5 {[%clk 0:02:59.7]} 9... Nxe5 {[%clk
0:03:01.6]} 10. Be2 {[%clk 0:02:59.9]} 10... Be6 {[%clk 0:03:01.2]} 11. O-O
{[%clk 0:02:59.6]} 11... Nxf3+ {[%clk 0:03:02]} 12. Bxf3 {[%clk 0:02:59.3]}
12... Re8 {[%clk 0:03:00.2]} 13. Bf4 {[%clk 0:02:54]} 13... d5 {[%clk
0:02:57.8]} 14. exd5 {[%clk 0:02:54.5]} 14... Nxd5 {[%clk 0:02:58.3]} 15. Nxd5
{[%clk 0:02:54.1]} 15... Bxd5 {[%clk 0:02:56.5]} 16. Bxd5 {[%clk 0:02:53.9]}
16... cxd5 {[%clk 0:02:58.4]} 17. c3 {[%clk 0:02:51.7]} 17... d4 {[%clk
0:02:58.9]} 18. cxd4 {[%clk 0:02:48.8]} 18... Bxd4 {[%clk 0:03:00.8]} 19. Qb3
{[%clk 0:02:44.1]} 19... Qf6 {[%clk 0:03:00.1]} 20. Bg3 {[%clk 0:02:42.9]} 20...
Bxb2 {[%clk 0:02:36.5]} 21. Ra2 {[%clk 0:02:43.7]} 21... Bd4 {[%clk 0:02:24.5]}
22. Qxb7 {[%clk 0:02:43.7]} 22... a6 {[%clk 0:02:23.9]} 23. Rc2 {[%clk
0:02:36.6]} 23... Qg5 {[%clk 0:02:18]} 24. Kh2 {[%clk 0:02:32.1]} 24... Qxa5
{[%clk 0:02:17.6]} 25. Rd1 {[%clk 0:02:11.4]} 25... Be5 {[%clk 0:02:10.6]} 26.
Rd7 {[%clk 0:02:09.7]} 26... Bxg3+ {[%clk 0:02:05.1]} 27. fxg3 {[%clk
0:02:10.6]} 27... Qf5 {[%clk 0:02:02.6]} 28. Rc3 {[%clk 0:01:33.7]} 28... Rab8
{[%clk 0:01:19]} 29. Qc7 {[%clk 0:01:25]} 29... Rbc8 {[%clk 0:00:41.4]} 30. Qxc8
{[%clk 0:01:24]} 30... Rxc8 {[%clk 0:00:43.3]} 31. Rxc8+ {[%clk 0:01:25.3]}
31... Kg7 {[%clk 0:00:44.3]} 32. Rcc7 {[%clk 0:01:23.7]} 32... h5 {[%clk
0:00:41]} 33. h4 {[%clk 0:01:12.9]} 33... a5 {[%clk 0:00:42.2]} 34. Ra7 {[%clk
0:01:13.2]} 34... g5 {[%clk 0:00:42.1]} 35. hxg5 {[%clk 0:01:10.3]} 35... Kg6
{[%clk 0:00:28.5]} 36. Ra6+ {[%clk 0:01:09.3]} 36... Kxg5 {[%clk 0:00:25]} 37.
Rda7 {[%clk 0:01:10]} 37... Qf2 {[%clk 0:00:18.7]} 38. Rxa5+ {[%clk 0:01:10.6]}
38... Kg6 {[%clk 0:00:20.2]} 39. R7a6+ {[%clk 0:01:10]} 39... f6 {[%clk
0:00:21.5]} 40. Ra4 {[%clk 0:01:07.8]} 40... Qe2 {[%clk 0:00:19.3]} 41. Ra8
{[%clk 0:01:05.8]} 41... Qe5 {[%clk 0:00:15.2]} 42. Rf4 {[%clk 0:01:03.9]} 42...
Kg7 {[%clk 0:00:13.2]} 43. Ra7+ {[%clk 0:01:04.1]} 43... Kg6 {[%clk 0:00:14.5]}
44. Ra6 {[%clk 0:01:04.3]} 44... Kg5 {[%clk 0:00:12]} 45. Ra8 {[%clk 0:00:51.5]}
45... Kg6 {[%clk 0:00:10.8]} 46. Rg8+ {[%clk 0:00:50.8]} 46... Kf7 {[%clk
0:00:11.4]} 47. Rh8 {[%clk 0:00:42.5]} 47... Kg7 {[%clk 0:00:11.5]} 48. Ra8
{[%clk 0:00:41.3]} 48... Kg6 {[%clk 0:00:12.3]} 49. Ra7 {[%clk 0:00:28.7]} 49...
Qc5 {[%clk 0:00:10]} 50. Ra6 {[%clk 0:00:27.8]} 50... Qe5 {[%clk 0:00:10.8]} 51.
Rh4 {[%clk 0:00:27.9]} 51... Kg5 {[%clk 0:00:10.2]} 52. Ra8 {[%clk 0:00:27.9]}
52... Kg6 {[%clk 0:00:06.6]} 53. Rh8 {[%clk 0:00:23]} 53... Qd5 {[%clk
0:00:04.7]} 54. Kh3 {[%clk 0:00:20.6]} 54... Qf5+ {[%clk 0:00:05.6]} 55. Kh2
{[%clk 0:00:18.2]} 55... Qd5 {[%clk 0:00:06.7]} 56. Rf4 {[%clk 0:00:07.6]} 56...
Qe5 {[%clk 0:00:06.5]} 57. Rf8 {[%clk 0:00:08.1]} 57... Kg7 {[%clk 0:00:07]} 58.
Ra8 {[%clk 0:00:07.9]} 58... Kg6 {[%clk 0:00:08.2]} 59. Raa4 {[%clk 0:00:08.7]}
59... Kg5 {[%clk 0:00:08.2]} 60. Rh4 {[%clk 0:00:08.9]} 60... Kg6 {[%clk
0:00:08.6]} 61. Raf4 {[%clk 0:00:09.3]} 61... Qd5 {[%clk 0:00:08.2]} 62. Rf3
{[%clk 0:00:09.8]} 62... Qe5 {[%clk 0:00:08.4]} 63. Rhf4 {[%clk 0:00:10.5]}
63... Kg5 {[%clk 0:00:09]} 64. Kh3 {[%clk 0:00:10.3]} 64... Qe6+ {[%clk
0:00:05.8]} 65. Kh2 {[%clk 0:00:11.5]} 65... Qe5 {[%clk 0:00:07.2]} 66. Rd3
{[%clk 0:00:11.3]} 66... Qe6 {[%clk 0:00:06.7]} 67. Rdd4 {[%clk 0:00:12.1]}
67... Qe5 {[%clk 0:00:07.8]} 68. Ra4 {[%clk 0:00:13]} 68... Kg6 {[%clk
0:00:09.1]} 69. Rh4 {[%clk 0:00:12.5]} 69... Qd5 {[%clk 0:00:09.8]} 70. Rad4
{[%clk 0:00:13.1]} 70... Qe5 {[%clk 0:00:11.1]} 71. Rhe4 {[%clk 0:00:13.8]}
71... Qf5 {[%clk 0:00:12]} 72. Re7 {[%clk 0:00:12.9]} 72... Qc5 {[%clk
0:00:09.2]} 73. Rdd7 {[%clk 0:00:13.4]} 73... Kf5 {[%clk 0:00:08]} 74. Rh7
{[%clk 0:00:09.6]} 74... Ke6 {[%clk 0:00:09.2]} 75. Rdg7 {[%clk 0:00:08.8]}
75... Qe5 {[%clk 0:00:09.8]} 76. Rg6 {[%clk 0:00:07.5]} 76... h4 {[%clk
0:00:05.7]} 77. Rxh4 {[%clk 0:00:07.3]} 77... Kf7 {[%clk 0:00:07.2]} 78. Rgg4
{[%clk 0:00:07.9]} 78... f5 {[%clk 0:00:08.4]} 79. Rf4 {[%clk 0:00:08.6]} 79...
Kg6 {[%clk 0:00:09.7]} 80. Rh3 {[%clk 0:00:06.7]} 80... Kg5 {[%clk 0:00:10.2]}
81. Rf3 {[%clk 0:00:04.9]} 81... Qe4 {[%clk 0:00:10.3]} 82. Rh4 {[%clk 0:00:06]}
82... Qe5 {[%clk 0:00:10.6]} 83. Rhf4 {[%clk 0:00:07]} 83... Qh8+ {[%clk
0:00:11.7]} 84. Kg1 {[%clk 0:00:05.6]} 84... Qa1+ {[%clk 0:00:12.4]} 85. Rf1
{[%clk 0:00:05.8]} 85... Qa7+ {[%clk 0:00:13.9]} 86. Kh2 {[%clk 0:00:06.8]}
86... Qh7+ {[%clk 0:00:14.6]} 87. Rh4 {[%clk 0:00:07.8]} 87... Qd7 {[%clk
0:00:13.5]} 88. Rhf4 {[%clk 0:00:04.1]} 88... Qh7+ {[%clk 0:00:14.3]} 89. Kg1
{[%clk 0:00:05.2]} 89... Qa7+ {[%clk 0:00:15.3]} 90. R1f2 {[%clk 0:00:05]} 90...
Qe3 {[%clk 0:00:16.2]} 91. Kh2 {[%clk 0:00:05.2]} 91... Qe7 {[%clk 0:00:05.2]}
92. Rxf5+ {[%clk 0:00:05.5]} 92... Kg6 {[%clk 0:00:06.6]} 93. g4 {[%clk
0:00:04.2]} 93... Qh7+ {[%clk 0:00:06.8]} 94. Rh5 {[%clk 0:00:04.2]} 94... Qc7+
{[%clk 0:00:08.4]} 95. g3 {[%clk 0:00:04.4]} 95... Qc3 {[%clk 0:00:07.8]} 96.
Kh3 {[%clk 0:00:02.6]} 96... Qe1 {[%clk 0:00:08.9]} 97. Rhf5 {[%clk 0:00:03.6]}
97... Qh1+ {[%clk 0:00:09.3]} 98. Rh2 {[%clk 0:00:04.8]} 98... Qe4 {[%clk
0:00:10.9]} 99. Rff2 {[%clk 0:00:05.5]} 99... Qe3 {[%clk 0:00:11.4]} 100. Rhg2
{[%clk 0:00:05.9]} 100... Qh6# {[%clk 0:00:12.1]} 0-1

[Event "*** Titled Tuesday 3|2 Blitz"]
[Site "Chess.com"]
[Date "2015.07.07"]
[Round "7"]
[White "pedromartinez91"]
[Black "Keaton87"]
[Result "1-0"]
[WhiteElo "2177"]
[BlackElo "2409"]
[TimeControl "180+2"]
[EndTime "12:24:07 PDT"]
[Termination "pedromartinez91 won by resignation"]

1. d4 {[%clk 0:03:01.9]} 1... Nf6 {[%clk 0:03:00.6]} 2. c4 {[%clk 0:02:58.2]}
2... g6 {[%clk 0:03:01.9]} 3. Nc3 {[%clk 0:02:57.1]} 3... Bg7 {[%clk 0:03:02.7]}
4. Nf3 {[%clk 0:02:58.2]} 4... O-O {[%clk 0:03:03.6]} 5. Bf4 {[%clk 0:02:58.2]}
5... d6 {[%clk 0:03:01.2]} 6. h3 {[%clk 0:02:58.4]} 6... Nfd7 {[%clk 0:03:02.3]}
7. e3 {[%clk 0:02:58.6]} 7... e5 {[%clk 0:03:02]} 8. Bh2 {[%clk 0:02:59.1]} 8...
c5 {[%clk 0:02:58.7]} 9. dxc5 {[%clk 0:02:58.2]} 9... Nxc5 {[%clk 0:02:52.4]}
10. Be2 {[%clk 0:02:58.9]} 10... Be6 {[%clk 0:02:53.1]} 11. O-O {[%clk
0:02:58.4]} 11... Nc6 {[%clk 0:02:54.4]} 12. Rc1 {[%clk 0:02:49.6]} 12... Rc8
{[%clk 0:02:54.8]} 13. b3 {[%clk 0:02:50]} 13... h6 {[%clk 0:02:43.5]} 14. Nb5
{[%clk 0:02:50.2]} 14... Nb4 {[%clk 0:02:25.3]} 15. a3 {[%clk 0:02:37.4]} 15...
e4 {[%clk 0:02:25.9]} 16. axb4 {[%clk 0:02:32.7]} 16... exf3 {[%clk 0:02:26.7]}
17. Bxf3 {[%clk 0:02:33.1]} 17... Na6 {[%clk 0:02:24.7]} 18. Bxb7 {[%clk
0:02:31.5]} 18... Nxb4 {[%clk 0:02:25.3]} 19. Bxc8 {[%clk 0:02:30.8]} 19... Qxc8
{[%clk 0:02:26.8]} 20. Qxd6 {[%clk 0:02:26.7]} 20... a5 {[%clk 0:02:25.2]} 21.
Qc7 {[%clk 0:02:24.8]} 21... Qa8 {[%clk 0:02:24.4]} 22. Qa7 {[%clk 0:02:20.8]}
22... Qe4 {[%clk 0:02:23.2]} 23. Qxa5 {[%clk 0:02:21]} 23... Nd3 {[%clk
0:02:24]} 24. Rcd1 {[%clk 0:02:15.5]} 24... Ne5 {[%clk 0:02:20]} 25. Rd4 {[%clk
0:02:14]} 25... Qc2 {[%clk 0:02:19.5]} 26. Na3 {[%clk 0:02:03.6]} 26... Qa2
{[%clk 0:02:18.7]} 27. Bxe5 {[%clk 0:02:03.3]} 1-0

[Event "*** Titled Tuesday 3|2 Blitz"]
[Site "Chess.com"]
[Date "2015.07.07"]
[Round "7"]
[White "lexiel"]
[Black "GeorgMeier"]
[Result "0-1"]
[WhiteElo "2238"]
[BlackElo "2717"]
[TimeControl "180+2"]
[EndTime "12:26:21 PDT"]
[Termination "GeorgMeier won by resignation"]

1. b3 {[%clk 0:03:01.9]} 1... Nf6 {[%clk 0:02:58.1]} 2. Bb2 {[%clk 0:02:57.6]}
2... d5 {[%clk 0:02:47.1]} 3. e3 {[%clk 0:02:58.2]} 3... Bf5 {[%clk 0:02:47]} 4.
Nc3 {[%clk 0:02:56.1]} 4... e6 {[%clk 0:02:46.4]} 5. f3 {[%clk 0:02:56.1]} 5...
h5 {[%clk 0:02:45.3]} 6. d4 {[%clk 0:02:54.3]} 6... a6 {[%clk 0:02:45]} 7. Bd3
{[%clk 0:02:55.3]} 7... Bxd3 {[%clk 0:02:46]} 8. Qxd3 {[%clk 0:02:56.6]} 8... c5
{[%clk 0:02:47.3]} 9. Nge2 {[%clk 0:02:57.6]} 9... Nc6 {[%clk 0:02:42.7]} 10.
O-O-O {[%clk 0:02:58.3]} 10... Rc8 {[%clk 0:02:39.5]} 11. Kb1 {[%clk 0:02:57]}
11... c4 {[%clk 0:02:37.8]} 12. Qd2 {[%clk 0:02:56.4]} 12... b5 {[%clk
0:02:36.2]} 13. a3 {[%clk 0:02:51.3]} 13... b4 {[%clk 0:02:30.1]} 14. axb4
{[%clk 0:02:52]} 14... Bxb4 {[%clk 0:02:30.2]} 15. bxc4 {[%clk 0:02:52]} 15...
Na5 {[%clk 0:02:31.2]} 16. c5 {[%clk 0:01:57.6]} 16... Nc4 {[%clk 0:02:31.4]}
17. Qd3 {[%clk 0:01:58.9]} 17... Rb8 {[%clk 0:02:23.7]} 18. Na4 {[%clk
0:01:31.8]} 18... Qa5 {[%clk 0:01:37.1]} 19. Nb6 {[%clk 0:01:31.8]} 19... Nd7
{[%clk 0:01:32.5]} 20. Nc1 {[%clk 0:01:27.8]} 20... Ndxb6 {[%clk 0:01:28.8]} 21.
cxb6 {[%clk 0:01:28.2]} 21... Qxb6 {[%clk 0:01:23.2]} 22. Nb3 {[%clk 0:01:27]}
22... a5 {[%clk 0:01:24]} 23. e4 {[%clk 0:01:18.6]} 23... O-O {[%clk 0:01:22.9]}
24. exd5 {[%clk 0:01:01.4]} 24... exd5 {[%clk 0:01:24.8]} 25. Qf5 {[%clk
0:01:02]} 25... a4 {[%clk 0:01:24.5]} 26. Qxd5 {[%clk 0:01:02.4]} 26... Rfc8
{[%clk 0:01:23.4]} 0-1

[Event "*** Titled Tuesday 3|2 Blitz"]
[Site "Chess.com"]
[Date "2015.07.07"]
[Round "7"]
[White "wanyaland"]
[Black "stefanodinn"]
[Result "1-0"]
[WhiteElo "2172"]
[BlackElo "2123"]
[TimeControl "180+2"]
[EndTime "12:26:45 PDT"]
[Termination "wanyaland won on time"]

1. e4 {[%clk 0:03:01.9]} 1... c5 {[%clk 0:02:55.4]} 2. Nf3 {[%clk 0:03:01.6]}
2... d6 {[%clk 0:02:55.9]} 3. d4 {[%clk 0:03:02.1]} 3... cxd4 {[%clk 0:02:56.9]}
4. Nxd4 {[%clk 0:03:02.9]} 4... Nf6 {[%clk 0:02:57.7]} 5. Nc3 {[%clk 0:03:04.5]}
5... a6 {[%clk 0:02:54.6]} 6. h3 {[%clk 0:03:03.2]} 6... e6 {[%clk 0:02:53.2]}
7. g4 {[%clk 0:03:04]} 7... d5 {[%clk 0:02:54.1]} 8. e5 {[%clk 0:03:00.7]} 8...
Nfd7 {[%clk 0:02:52.3]} 9. f4 {[%clk 0:03:00.8]} 9... Qh4+ {[%clk 0:02:37.8]}
10. Ke2 {[%clk 0:03:01]} 10... Bc5 {[%clk 0:02:21.5]} 11. Be3 {[%clk 0:03:00.6]}
11... Qe7 {[%clk 0:02:17.5]} 12. Bg2 {[%clk 0:03:00.2]} 12... Nc6 {[%clk
0:02:14.5]} 13. Re1 {[%clk 0:02:53.1]} 13... O-O {[%clk 0:02:13.5]} 14. Kf1
{[%clk 0:02:52.4]} 14... Nxd4 {[%clk 0:02:11.4]} 15. Bxd4 {[%clk 0:02:52.3]}
15... Bxd4 {[%clk 0:01:56.7]} 16. Qxd4 {[%clk 0:02:52.4]} 16... b5 {[%clk
0:01:51.3]} 17. b4 {[%clk 0:02:48.3]} 17... Bb7 {[%clk 0:01:51.1]} 18. f5 {[%clk
0:02:47.4]} 18... Rac8 {[%clk 0:01:35.5]} 19. a3 {[%clk 0:02:47.4]} 19... Rc4
{[%clk 0:01:34.2]} 20. Qd2 {[%clk 0:02:48.2]} 20... Rfc8 {[%clk 0:01:34.1]} 21.
Nd1 {[%clk 0:02:33.5]} 21... Rxc2 {[%clk 0:01:33.6]} 22. Qf4 {[%clk 0:02:34.2]}
22... R8c4 {[%clk 0:01:22.8]} 23. Qg3 {[%clk 0:02:33.2]} 23... Rc8 {[%clk
0:00:42.2]} 24. Kg1 {[%clk 0:02:00.9]} 24... Nb6 {[%clk 0:00:40.3]} 25. Ne3
{[%clk 0:01:55.7]} 25... R2c3 {[%clk 0:00:40.2]} 26. Qf4 {[%clk 0:01:55.2]}
26... d4 {[%clk 0:00:26.5]} 27. f6 {[%clk 0:01:54.1]} 1-0

[Event "*** Titled Tuesday 3|2 Blitz"]
[Site "Chess.com"]
[Date "2015.07.07"]
[Round "7"]
[White "TheLancer"]
[Black "HansCoolNiemann"]
[Result "0-1"]
[WhiteElo "2283"]
[BlackElo "1987"]
[TimeControl "180+2"]
[EndTime "12:27:36 PDT"]
[Termination "HansCoolNiemann won by checkmate"]

1. e4 {[%clk 0:03:01.9]} 1... e6 {[%clk 0:02:58]} 2. d4 {[%clk 0:03:01.7]} 2...
d5 {[%clk 0:02:56.3]} 3. Nc3 {[%clk 0:03:02.5]} 3... Nf6 {[%clk 0:02:51.6]} 4.
Bg5 {[%clk 0:03:02.3]} 4... dxe4 {[%clk 0:02:51.2]} 5. Nxe4 {[%clk 0:03:03.2]}
5... Be7 {[%clk 0:02:51.3]} 6. Bxf6 {[%clk 0:03:04.8]} 6... gxf6 {[%clk
0:02:50.9]} 7. Nf3 {[%clk 0:03:05.1]} 7... f5 {[%clk 0:02:38.3]} 8. Nc3 {[%clk
0:03:06]} 8... a6 {[%clk 0:02:33.7]} 9. d5 {[%clk 0:02:52.5]} 9... O-O {[%clk
0:02:30.4]} 10. Bc4 {[%clk 0:02:44]} 10... b5 {[%clk 0:02:27.2]} 11. Bb3 {[%clk
0:02:45]} 11... c5 {[%clk 0:02:25.7]} 12. dxc6 {[%clk 0:02:32.4]} 12... Nxc6
{[%clk 0:02:22.5]} 13. Qe2 {[%clk 0:02:16.2]} 13... Bf6 {[%clk 0:02:19.5]} 14.
g4 {[%clk 0:01:48.7]} 14... fxg4 {[%clk 0:02:09]} 15. Rg1 {[%clk 0:01:48.3]}
15... Kh8 {[%clk 0:02:02.6]} 16. Rxg4 {[%clk 0:01:46.9]} 16... Bb7 {[%clk
0:01:59.8]} 17. Rd1 {[%clk 0:01:30.7]} 17... Qe7 {[%clk 0:01:56.2]} 18. Ne4
{[%clk 0:01:15.5]} 18... Ne5 {[%clk 0:01:50.6]} 19. Nxe5 {[%clk 0:01:04]} 19...
Bxe5 {[%clk 0:01:48.3]} 20. c3 {[%clk 0:00:31.9]} 20... f5 {[%clk 0:01:43.4]}
21. Ng5 {[%clk 0:00:29.5]} 21... Bf6 {[%clk 0:01:39.5]} 22. Rgd4 {[%clk
0:00:13]} 22... Bxd4 {[%clk 0:01:35.6]} 23. Nxe6 {[%clk 0:00:12.7]} 23... Bf6
{[%clk 0:01:31.6]} 24. Nxf8 {[%clk 0:00:12.5]} 24... Qxf8 {[%clk 0:01:30.1]} 25.
Kf1 {[%clk 0:00:11.9]} 25... Qh6 {[%clk 0:01:26.4]} 26. Bd5 {[%clk 0:00:11.3]}
26... Bxd5 {[%clk 0:01:22.6]} 27. Rxd5 {[%clk 0:00:13.2]} 27... Qxh2 {[%clk
0:01:19.8]} 28. Qe6 {[%clk 0:00:12.3]} 28... Qh1+ {[%clk 0:01:14.5]} 29. Ke2
{[%clk 0:00:13.5]} 29... Bg7 {[%clk 0:01:13.5]} 30. Rxf5 {[%clk 0:00:11.8]}
30... Rd8 {[%clk 0:01:10]} 31. Qe3 {[%clk 0:00:04.8]} 31... Qd1# {[%clk
0:01:08.3]} 0-1